bitfinex-derivatives/quotes_BTCF0:USTF0_20250327
["timestamp","ask_amount","ask_price","bid_price","bid_amount"]
[1743043345640,0.02542457,87673.0,87672.0,2.24515283]
[1743043347037,0.02542457,87673.0,87672.0,2.35511283]
[1743043348642,0.02563612,87673.0,87672.0,2.35511283]
[1743043348840,0.02563612,87673.0,87672.0,2.15122227]
[1743043349941,0.02563612,87673.0,87672.0,2.51202227]
[1743043351533,0.02563612,87673.0,87672.0,2.40206227]
[1743043352143,0.02563612,87673.0,87672.0,2.43526227]
[1743043355546,0.09003612,87673.0,87672.0,2.43526227]
[1743043358152,0.09003612,87673.0,87672.0,0.93526227]
[1743043358456,0.09003612,87673.0,87672.0,0.92369575]
[1743043360449,0.08099868,87673.0,87672.0,0.92369575]
[1743043360661,0.09013937,87673.0,87672.0,0.92369575]
[1743043362750,0.05823937,87673.0,87672.0,2.43531754]
[1743043364657,0.02573937,87673.0,87672.0,2.43531754]
[1743043364860,8e-05,87675.0,87674.0,0.1140452]
[1743043365068,8e-05,87675.0,87674.0,0.1152452]
[1743043365255,0.0312,87679.0,87678.0,0.11404]
[1743043365458,0.0312,87679.0,87678.0,0.49908795]
[1743043366762,0.0323,87680.0,87679.0,0.1140387]
[1743043367063,0.0323,87680.0,87679.0,0.2096987]
[1743043369161,0.0323,87680.0,87679.0,0.1766987]
[1743043370163,0.0628,87680.0,87679.0,0.56058665]
[1743043370358,0.0323,87680.0,87679.0,0.56058665]
[1743043372265,0.0628,87680.0,87679.0,0.56058665]
[1743043376863,0.07176717,87680.0,87679.0,0.56058665]
[1743043377263,0.01524941,87680.0,87679.0,0.56058665]
[1743043379363,0.01524245,87680.0,87679.0,0.56058665]
[1743043379974,1e-08,87681.0,87680.0,0.1140374]
[1743043380265,0.00891209,87681.0,87680.0,0.4760774]
[1743043380463,0.0326,87691.0,87690.0,0.1140244]
[1743043380667,0.03376,87691.0,87690.0,0.4760244]
[1743043381067,0.06455184,87693.0,87692.0,0.1140218]
[1743043381267,0.09715184,87693.0,87692.0,0.12728597]
[1743043381468,0.0634,87693.0,87692.0,1.62728597]
[1743043381860,0.0634,87693.0,87692.0,2.01117392]
[1743043382868,0.0326,87693.0,87692.0,0.51117392]
[1743043387662,0.0004,87697.0,87696.0,0.1140166]
[1743043387869,0.0004,87697.0,87696.0,0.49946455]
[1743043389171,0.0328,87697.0,87696.0,0.49946455]
[1743043391667,0.0004,87697.0,87696.0,0.53036455]
[1743043391870,0.0004,87697.0,87696.0,0.56096455]
[1743043392067,0.0004,87697.0,87696.0,2.06096455]
[1743043392275,0.0167616,87697.0,87696.0,2.06096455]
[1743043392579,0.02456214,87697.0,87696.0,2.06096455]
[1743043392968,0.01449346,87697.0,87696.0,2.06096455]
[1743043393465,0.00896054,87697.0,87696.0,2.06096455]
[1743043394373,0.10008,87700.0,87699.0,0.1140127]
[1743043394678,0.10908168,87700.0,87699.0,0.4764127]
[1743043395076,0.10908168,87700.0,87699.0,1.9764127]
[1743043396378,0.10908168,87700.0,87699.0,2.36030065]
[1743043396567,0.10908168,87700.0,87699.0,2.39330065]
[1743043397381,0.10908168,87700.0,87699.0,2.66483828]
[1743043398178,0.10908168,87700.0,87699.0,2.77471828]
[1743043399872,0.10908168,87700.0,87699.0,2.66483828]
[1743043400068,0.10908168,87700.0,87699.0,2.77467828]
[1743043400273,0.10913307,87700.0,87699.0,2.77467828]
[1743043401680,0.10913307,87700.0,87699.0,2.50314065]
[1743043402178,0.10913307,87700.0,87699.0,2.53594065]
[1743043404281,0.10911194,87700.0,87699.0,2.53594065]
[1743043404483,0.11541999,87700.0,87699.0,2.53594065]
[1743043406981,0.22943139,87700.0,87699.0,2.36030065]
[1743043407181,0.22943139,87700.0,87699.0,0.86030065]
[1743043407381,0.11541999,87700.0,87699.0,0.86030065]
[1743043407783,0.23950563,87700.0,87699.0,0.86030065]
[1743043407979,0.30170563,87700.0,87699.0,0.86030065]
[1743043408282,0.30170563,87700.0,87699.0,0.0016]
[1743043408473,0.114014,87698.0,87697.0,0.22323763]
[1743043408671,0.12416595,87698.0,87697.0,0.22427763]
[1743043409385,0.14054824,87698.0,87697.0,0.22427763]
[1743043409581,0.14054824,87698.0,87697.0,0.00104]
[1743043411387,0.50134824,87698.0,87697.0,0.00104]
[1743043411691,0.1140153,87697.0,87696.0,0.22323763]
[1743043411988,0.18682724,87697.0,87696.0,0.22431763]
[1743043412190,0.20320953,87697.0,87696.0,0.22431763]
[1743043412680,0.2032188,87697.0,87696.0,0.22431763]
[1743043413087,0.1140257,87689.0,87688.0,0.20349109]
[1743043413275,0.48458691,87689.0,87688.0,0.20421109]
[1743043413481,0.5009692,87689.0,87688.0,0.20421109]
[1743043413980,0.5636692,87689.0,87688.0,0.20421109]
[1743043414186,0.56364846,87689.0,87688.0,0.20421109]
[1743043414988,0.56364846,87689.0,87688.0,0.20349109]
[1743043415185,0.1140335,87683.0,87682.0,0.00017106]
[1743043415484,0.12377397,87683.0,87682.0,0.00089106]
[1743043415690,0.14015626,87683.0,87682.0,0.00089106]
[1743043416184,0.20394668,87683.0,87682.0,0.00089106]
[1743043417088,0.20394668,87683.0,87682.0,0.00017106]
[1743043417388,0.31378668,87683.0,87682.0,0.00017106]
[1743043417889,0.30467579,87683.0,87682.0,0.00017106]
[1743043418092,0.20381925,87683.0,87682.0,0.11420586]
[1743043418391,0.20381925,87683.0,87682.0,0.14782586]
[1743043418989,0.20381925,87683.0,87682.0,1.64782586]
[1743043419386,0.56389925,87683.0,87682.0,1.64782586]
[1743043419587,0.56461925,87683.0,87682.0,1.64782586]
[1743043419989,0.20384467,87683.0,87682.0,1.64782586]
[1743043420187,0.20312467,87683.0,87682.0,0.14782586]
[1743043420389,0.20388467,87683.0,87682.0,0.14782586]
[1743043421083,0.20388467,87683.0,87682.0,0.17872586]
[1743043421482,0.20312467,87683.0,87682.0,0.17872586]
[1743043421682,0.20384467,87683.0,87682.0,0.17872586]
[1743043422782,0.20312467,87683.0,87682.0,0.17872586]
[1743043423702,0.08909117,87683.0,87682.0,0.17872586]
[1743043423998,0.08989117,87683.0,87682.0,0.17872586]
[1743043424691,0.20392467,87683.0,87682.0,0.17872586]
[1743043424993,0.05919117,87683.0,87682.0,0.17872586]
[1743043425697,0.05839117,87683.0,87682.0,0.17872586]
[1743043425887,0.05911117,87683.0,87682.0,0.17872586]
[1743043426193,0.02611117,87683.0,87682.0,0.17872586]
[1743043426495,0.01531693,87683.0,87682.0,0.17872586]
[1743043426887,0.0331,87698.0,87690.0,0.1140244]
[1743043427087,0.36156,87691.0,87690.0,0.1147444]
[1743043427287,0.37171245,87691.0,87690.0,0.1147444]
[1743043427693,0.37171245,87691.0,87690.0,0.1762444]
[1743043428785,0.37171245,87691.0,87690.0,0.56013235]
[1743043429094,0.01091245,87691.0,87690.0,0.56013235]
[1743043429310,0.01015245,87691.0,87690.0,0.56013235]
[1743043429495,8e-05,87693.0,87692.0,0.1140218]
[1743043429694,0.1140148,87698.0,87697.0,0.1140153]
[1743043429894,0.1147348,87698.0,87697.0,0.1147353]
[1743043430197,0.1248541,87698.0,87697.0,0.1147353]
[1743043430796,0.1248541,87698.0,87697.0,0.1789353]
[1743043431189,0.1248541,87698.0,87697.0,0.19011991]
[1743043431389,0.0108393,87698.0,87697.0,0.19011991]
[1743043431591,0.1248533,87698.0,87697.0,0.1789353]
[1743043431990,0.1555533,87698.0,87697.0,0.1789353]
[1743043433399,0.1555533,87698.0,87697.0,0.03262]
[1743043433400,0.17066264,87698.0,87697.0,0.03262]
[1743043433600,0.17066264,87698.0,87697.0,0.00072]
[1743043434106,0.17930893,87698.0,87697.0,0.00072]
[1743043434790,0.1140231,87691.0,87690.0,0.0329]
[1743043435097,0.12977244,87691.0,87690.0,0.03366]
[1743043435700,0.13989174,87691.0,87690.0,0.03366]
[1743043435997,0.20139174,87691.0,87690.0,0.03366]
[1743043436197,0.20139174,87691.0,87690.0,0.1476844]
[1743043436597,0.56219174,87691.0,87690.0,0.00076]
[1743043436792,0.1140309,87686.0,87685.0,0.1140296]
[1743043436990,0.12986024,87686.0,87685.0,0.1449496]
[1743043437186,0.19496024,87686.0,87685.0,0.1763496]
[1743043437802,0.20507954,87686.0,87685.0,0.1763496]
[1743043438793,0.21490262,87686.0,87685.0,0.1763496]
[1743043439502,0.22161437,87686.0,87685.0,0.1763496]
[1743043442597,0.22189504,87686.0,87685.0,0.1763496]
[1743043443489,0.04276414,87686.0,87685.0,0.1763496]
[1743043443802,0.15679374,87686.0,87685.0,0.1763496]
[1743043446597,0.15605929,87686.0,87685.0,0.1763496]
[1743043447910,0.18765929,87686.0,87685.0,0.1763496]
[1743043448608,0.18767382,87686.0,87685.0,0.1763496]
[1743043449897,0.16318065,87686.0,87685.0,0.1763496]
[1743043450104,0.18768773,87686.0,87685.0,0.1763496]
[1743043450597,0.18768885,87686.0,87685.0,0.1763496]
[1743043452411,0.07365925,87686.0,87685.0,0.1763496]
[1743043452999,0.18768885,87686.0,87685.0,0.1763496]
[1743043454404,0.18758381,87686.0,87685.0,0.1763496]
[1743043462218,0.18791807,87686.0,87685.0,0.1763496]
[1743043462612,0.18791807,87686.0,87685.0,0.00072]
[1743043462915,0.18791807,87686.0,87685.0,7.821e-05]
[1743043463116,0.1140335,87683.0,87682.0,0.14460466]
[1743043463306,0.13941092,87683.0,87682.0,0.14520466]
[1743043463807,0.15624197,87683.0,87682.0,0.03117106]
[1743043464113,0.22124197,87683.0,87682.0,0.03117106]
[1743043464914,0.23246139,87683.0,87682.0,0.14520586]
[1743043467713,0.59326139,87683.0,87682.0,0.14520586]
[1743043468126,0.59345147,87683.0,87682.0,0.14520586]
[1743043468421,0.23265147,87683.0,87682.0,0.14520586]
[1743043468615,0.59345147,87683.0,87682.0,0.14520586]
[1743043468817,0.59345147,87683.0,87682.0,0.03117106]
[1743043469822,0.59345147,87683.0,87682.0,0.14520586]
[1743043470319,0.23265147,87683.0,87682.0,0.14520586]
[1743043470724,0.59345147,87683.0,87682.0,0.14520586]
[1743043471525,0.59345147,87683.0,87682.0,0.03117106]
[1743043472223,0.59345147,87683.0,87682.0,0.14520586]
[1743043473022,0.59345147,87683.0,87682.0,0.17690586]
[1743043474224,0.59347024,87683.0,87682.0,0.17690586]
[1743043474627,0.23267024,87683.0,87682.0,0.17690586]
[1743043476019,0.23230412,87683.0,87682.0,0.17690586]
[1743043476416,0.0420512,87683.0,87682.0,0.17690586]
[1743043476616,0.0414112,87683.0,87682.0,0.17690586]
[1743043476926,0.13657678,87686.0,87685.0,0.1140309]
[1743043477227,8e-05,87699.0,87690.0,0.1140244]
[1743043477521,0.12268335,87705.0,87690.0,1.9748244]
[1743043477722,0.1608089,87691.0,87690.0,1.9748244]
[1743043477915,0.1600889,87691.0,87690.0,1.9755444]
[1743043478219,0.1600889,87691.0,87690.0,2.0368444]
[1743043479916,0.1600889,87691.0,87690.0,2.1466844]
[1743043480526,8e-05,87692.0,87691.0,0.1140231]
[1743043480827,8e-05,87692.0,87691.0,0.1147831]
[1743043481016,8e-05,87692.0,87691.0,0.1763831]
[1743043482721,8e-05,87692.0,87691.0,0.5371831]
[1743043483123,0.1450071,87704.0,87699.0,0.1140127]
[1743043483426,0.10072,87700.0,87699.0,0.1147327]
[1743043483822,0.2147314,87700.0,87699.0,0.1147327]
[1743043484027,0.2147314,87700.0,87699.0,0.2096327]
[1743043487116,0.10072,87700.0,87699.0,0.2096327]
[1743043487321,0.11086943,87700.0,87699.0,0.2096327]
[1743043489235,0.11718465,87700.0,87699.0,0.2096327]
[1743043489928,0.11646465,87700.0,87699.0,0.2096327]
[1743043490129,0.11718465,87700.0,87699.0,0.2096327]
[1743043491329,0.23119605,87700.0,87699.0,0.2096327]
[1743043492236,0.11718465,87700.0,87699.0,0.2096327]
[1743043493835,0.11718465,87700.0,87699.0,0.5704327]
[1743043497237,0.11718465,87700.0,87699.0,0.2096327]
[1743043497438,0.11718465,87700.0,87699.0,0.5704327]
[1743043499438,0.11646465,87700.0,87699.0,0.5704327]
[1743043499747,0.10631522,87700.0,87699.0,0.5704327]
[1743043501949,0.10631522,87700.0,87699.0,0.95432065]
[1743043502149,0.10631522,87700.0,87699.0,1.06412065]
[1743043502345,0.26428248,87700.0,87699.0,0.77770795]
[1743043502649,0.20091522,87700.0,87699.0,0.89172065]
[1743043502946,0.21028937,87700.0,87699.0,2.39172065]
[1743043503141,0.32430077,87700.0,87699.0,2.39172065]
[1743043503443,0.32430077,87700.0,87699.0,2.42442065]
[1743043503650,0.31412662,87700.0,87699.0,2.42442065]
[1743043504554,0.31412662,87700.0,87699.0,2.39172065]
[1743043504848,0.20011522,87700.0,87699.0,2.39172065]
[1743043505644,0.20011522,87700.0,87699.0,2.03092065]
[1743043506337,0.31412662,87700.0,87699.0,2.03092065]
[1743043506741,0.20011522,87700.0,87699.0,2.03092065]
[1743043508051,0.20011522,87700.0,87699.0,1.6470327]
[1743043508849,0.31412662,87700.0,87699.0,1.6470327]
[1743043510359,0.20011522,87700.0,87699.0,1.6470327]
[1743043510548,0.20011522,87700.0,87699.0,1.6795327]
[1743043510856,0.31412662,87700.0,87699.0,1.6795327]
[1743043527783,0.114014,87698.0,87697.0,0.27114088]
[1743043527988,0.120357,87698.0,87697.0,0.27174088]
[1743043528184,0.120357,87698.0,87692.0,0.33942204]
[1743043528185,0.1140205,87693.0,87692.0,0.33942204]
[1743043528495,0.12687872,87693.0,87692.0,0.34006204]
[1743043528999,0.19017872,87693.0,87692.0,0.34006204]
[1743043529494,0.19017951,87693.0,87692.0,0.34006204]
[1743043530399,0.18447572,87693.0,87692.0,0.34006204]
[1743043531091,0.18447572,87693.0,87692.0,0.00064]
[1743043531291,0.1140335,87683.0,87682.0,0.00017106]
[1743043531491,0.4757535,87683.0,87682.0,0.00081106]
[1743043532092,0.54716872,87683.0,87682.0,0.00081106]
[1743043532293,0.54716872,87683.0,87682.0,0.00017106]
[1743043533897,0.55836505,87683.0,87682.0,0.00017106]
[1743043534502,0.55836505,87683.0,87682.0,0.00101106]
[1743043534695,0.55836505,87683.0,87682.0,0.00017106]
[1743043535202,0.56847622,87683.0,87682.0,0.00017106]
[1743043536104,0.56847622,87683.0,87682.0,0.00077106]
[1743043536299,0.20767622,87683.0,87682.0,0.00077106]
[1743043536507,0.56847622,87683.0,87682.0,0.00077106]
[1743043536705,0.56847622,87683.0,87682.0,0.00017106]
[1743043536905,0.20767622,87683.0,87682.0,0.00017106]
[1743043537093,0.56847622,87683.0,87682.0,0.00081106]
[1743043537292,0.56847622,87683.0,87682.0,0.00017106]
[1743043537998,0.56847622,87683.0,87682.0,0.03097106]
[1743043539202,0.55836505,87683.0,87682.0,0.03097106]
[1743043544199,0.66816505,87683.0,87682.0,0.03161106]
[1743043544398,0.66816505,87683.0,87682.0,0.06337106]
[1743043544399,0.55836505,87683.0,87682.0,0.06337106]
[1743043544597,0.66816505,87683.0,87682.0,0.06397106]
[1743043544802,0.37923155,87683.0,87682.0,0.17740586]
[1743043544996,0.00723522,87683.0,87682.0,0.53884586]
[1743043545295,0.18804872,87683.0,87682.0,0.57054586]
[1743043545495,0.18888872,87683.0,87682.0,0.57054586]
[1743043546902,0.18888872,87683.0,87682.0,0.58209603]
[1743043550201,0.18804872,87683.0,87682.0,0.58209603]
[1743043550400,0.18804872,87683.0,87682.0,0.22129603]
[1743043550697,0.18804872,87683.0,87682.0,0.58209603]
[1743043550698,0.18888872,87683.0,87682.0,0.58209603]
[1743043550904,0.18804872,87683.0,87682.0,0.58209603]
[1743043551207,0.18804872,87683.0,87682.0,2.08209603]
[1743043551713,0.07401522,87683.0,87682.0,2.08209603]
[1743043552504,0.18804872,87683.0,87682.0,2.08209603]
[1743043552707,0.18804872,87683.0,87682.0,0.58209603]
[1743043554907,0.07401522,87683.0,87682.0,0.58209603]
[1743043558616,0.07401522,87683.0,87682.0,0.22129603]
[1743043558808,0.07401522,87683.0,87682.0,0.58209603]
[1743043561413,0.07401522,87683.0,87682.0,0.7852451]
[1743043562717,0.07401522,87683.0,87682.0,0.4244451]
[1743043562907,0.07401522,87683.0,87682.0,0.7852451]
[1743043565720,0.25304872,87683.0,87682.0,0.7852451]
[1743043565917,0.25304872,87683.0,87682.0,0.4244451]
[1743043566124,0.25396872,87683.0,87682.0,0.41289493]
[1743043566607,0.07493522,87683.0,87682.0,0.41289493]
[1743043566812,0.18896872,87683.0,87682.0,0.41289493]
[1743043567013,0.22186872,87683.0,87682.0,0.41289493]
[1743043567212,0.25396872,87683.0,87682.0,0.41289493]
[1743043567421,0.25304872,87683.0,87682.0,0.41289493]
[1743043567625,0.25304872,87683.0,87682.0,0.42424927]
[1743043567813,0.25388872,87683.0,87682.0,0.41289493]
[1743043568012,0.25304872,87683.0,87682.0,0.41289493]
[1743043568520,0.25392873,87683.0,87682.0,0.41289493]
[1743043570413,0.25392873,87683.0,87682.0,0.20974586]
[1743043572021,0.25392873,87683.0,87682.0,0.17734586]
[1743043576922,0.25392873,87683.0,87682.0,0.14654586]
[1743043578530,0.25392873,87683.0,87682.0,0.17914586]
[1743043578724,0.25392873,87683.0,87682.0,0.14654586]
[1743043581928,0.26468426,87683.0,87682.0,0.14654586]
[1743043585229,0.26468426,87683.0,87682.0,0.17894586]
[1743043591642,0.27675202,87683.0,87682.0,0.17894586]
[1743043592139,0.26468426,87683.0,87682.0,0.17894586]
[1743043600843,0.26468426,87683.0,87682.0,0.45086715]
[1743043601050,0.08565076,87683.0,87682.0,0.45086715]
[1743043601240,0.13631216,87689.0,87685.0,0.0570153]
[1743043601437,0.3048581,87700.0,87694.0,0.1140192]
[1743043601649,0.08649974,87695.0,87694.0,2.10834715]
[1743043601848,0.08565974,87695.0,87694.0,2.10834715]
[1743043602237,0.08565974,87695.0,87694.0,2.17394715]
[1743043603558,0.08565974,87695.0,87694.0,2.89554715]
[1743043605163,8e-05,87698.0,87697.0,0.1140153]
[1743043605373,8e-05,87698.0,87697.0,0.1146953]
[1743043608752,8e-05,87698.0,87697.0,0.4754953]
[1743043609654,8e-05,87698.0,87697.0,0.1146953]
[1743043609859,8e-05,87698.0,87697.0,0.4754953]
[1743043612663,8e-05,87698.0,87697.0,0.1146953]
[1743043612867,8e-05,87698.0,87697.0,0.4754953]
[1743043613473,8e-05,87698.0,87697.0,0.1146953]
[1743043613671,8e-05,87698.0,87697.0,0.4754953]
[1743043613871,0.00640643,87698.0,87697.0,1.9754953]
[1743043617564,0.00640643,87698.0,87697.0,2.17859827]
[1743043617767,0.00640643,87698.0,87697.0,2.28835827]
[1743043619172,0.00640643,87698.0,87697.0,2.17859827]
[1743043619373,0.00640643,87698.0,87697.0,2.32055827]
[1743043620069,0.54562043,87698.0,87697.0,0.20378297]
[1743043620270,0.54650044,87698.0,87697.0,0.20378297]
[1743043621167,0.65626044,87698.0,87697.0,0.20378297]
[1743043621372,0.66635326,87698.0,87697.0,0.20378297]
[1743043621674,0.67777806,87698.0,87697.0,0.20378297]
[1743043621861,0.67777806,87698.0,87697.0,0.00068]
[1743043622769,0.1140179,87695.0,87694.0,0.27101889]
[1743043623074,0.13147716,87695.0,87694.0,0.27161889]
[1743043623660,0.19367716,87695.0,87694.0,0.27161889]
[1743043626274,0.19367716,87695.0,87694.0,0.0006]
[1743043626464,0.1140244,87690.0,87689.0,0.1140254]
[1743043626662,0.1140244,87690.0,87689.0,0.0006]
[1743043626663,0.11506441,87690.0,87689.0,0.0006]
[1743043627071,0.12139084,87690.0,87689.0,0.0006]
[1743043627275,0.18619084,87690.0,87689.0,0.0006]
[1743043627976,0.29595084,87690.0,87689.0,0.0006]
[1743043628876,0.30609281,87690.0,87689.0,0.0006]
[1743043629275,0.66689281,87690.0,87689.0,0.0006]
[1743043631271,0.55713281,87690.0,87689.0,0.0006]
[1743043631474,0.44310841,87690.0,87689.0,0.1146257]
[1743043631977,0.44310841,87690.0,87689.0,0.2104257]
[1743043631978,0.08230841,87690.0,87689.0,0.2104257]
[1743043632177,0.0812684,87690.0,87689.0,0.2104257]
[1743043632477,0.03976644,87690.0,87689.0,0.2104257]
[1743043632678,0.03872643,87690.0,87689.0,0.2104257]
[1743043633180,0.00632643,87690.0,87689.0,0.22173497]
[1743043634768,0.00564643,87690.0,87689.0,0.22173497]
[1743043635872,0.00564643,87690.0,87689.0,0.33149497]
[1743043636972,0.00564643,87690.0,87689.0,1.83149497]
[1743043637869,0.00564643,87690.0,87689.0,0.33149497]
[1743043639181,0.00564643,87690.0,87689.0,0.60251386]
[1743043639773,0.00564643,87690.0,87689.0,0.98640181]
[1743043642674,0.00564643,87690.0,87689.0,0.71538292]
[1743043642874,0.00564643,87690.0,87689.0,0.60562292]
[1743043643083,0.00564643,87690.0,87689.0,0.71562292]
[1743043643970,0.00564643,87690.0,87689.0,0.60562292]
[1743043644374,0.03734643,87690.0,87689.0,0.59431365]
[1743043644580,0.06814643,87690.0,87689.0,0.59431365]
[1743043644884,0.03734643,87690.0,87689.0,0.59431365]
[1743043645681,8e-05,87691.0,87690.0,0.1140244]
[1743043645887,8e-05,87691.0,87690.0,0.1454644]
[1743043646280,0.0625,87708.0,87699.0,0.1140127]
[1743043646474,0.0625,87708.0,87699.0,0.4754127]
[1743043646475,0.10104001,87700.0,87699.0,0.4754127]
[1743043646675,0.1,87700.0,87699.0,0.4754127]
[1743043646875,0.1,87700.0,87699.0,0.5056127]
[1743043647075,0.10112001,87700.0,87699.0,0.5056127]
[1743043647578,0.1,87700.0,87699.0,0.5056127]
[1743043648285,0.10104001,87700.0,87699.0,0.5056127]
[1743043648985,0.10104001,87700.0,87699.0,0.5370127]
[1743043649486,0.10104001,87700.0,87699.0,0.5685127]
[1743043651184,0.1,87700.0,87699.0,0.5685127]
[1743043655183,0.133,87700.0,87699.0,0.5685127]
[1743043655586,0.1,87700.0,87699.0,0.5685127]
[1743043655892,8e-05,87701.0,87699.0,0.5685127]
[1743043655893,8e-05,87701.0,87700.0,0.1140114]
[1743043656091,0.0309,87720.0,87712.0,0.1139958]
[1743043656389,0.0319,87719.0,87712.0,0.5855958]
[1743043656988,0.0319,87719.0,87712.0,0.6494958]
[1743043657389,0.0319,87719.0,87712.0,0.66091582]
[1743043658187,0.00656731,87713.0,87712.0,0.66091582]
[1743043659797,0.00656731,87713.0,87712.0,0.66933973]
[1743043660290,0.00656731,87713.0,87712.0,1.05322768]
[1743043661084,0.00656731,87713.0,87712.0,0.92318375]
[1743043661786,0.00656731,87713.0,87712.0,0.93441525]
[1743043661987,0.00656731,87713.0,87712.0,0.92318375]
[1743043662688,0.03666731,87713.0,87712.0,0.92318375]
[1743043664985,0.15066181,87713.0,87712.0,0.89218375]
[1743043665181,0.03666731,87713.0,87712.0,0.89218375]
[1743043667095,0.03666731,87713.0,87712.0,1.0957003]
[1743043667884,0.03666731,87713.0,87712.0,0.7349003]
[1743043668094,0.03666731,87713.0,87712.0,1.0957003]
[1743043668796,0.15066181,87713.0,87712.0,1.0957003]
[1743043669598,0.15066181,87713.0,87712.0,0.7349003]
[1743043669805,0.15178182,87713.0,87712.0,1.0957003]
[1743043670097,0.15066181,87713.0,87712.0,1.0957003]
[1743043672004,0.03666731,87713.0,87712.0,1.0957003]
[1743043672395,0.0305,87713.0,87712.0,1.0957003]
[1743043672792,0.03665549,87713.0,87712.0,1.0957003]
[1743043675803,0.03665549,87713.0,87712.0,0.89218375]
[1743043678707,0.03665549,87713.0,87712.0,0.53138375]
[1743043678909,0.03665549,87713.0,87712.0,0.89218375]
[1743043680806,0.03665549,87713.0,87712.0,0.53138375]
[1743043681007,0.03665549,87713.0,87712.0,0.89218375]
[1743043681214,0.00655549,87713.0,87712.0,0.89218375]
[1743043685013,0.00655549,87713.0,87712.0,1.00226375]
[1743043685210,0.08560439,87728.0,87727.0,0.1139763]
[1743043685425,0.05,87737.0,87735.0,0.1139659]
[1743043685720,0.17118562,87736.0,87735.0,0.4753659]
[1743043685917,0.17118562,87736.0,87735.0,2.35925385]
[1743043686119,0.17046562,87736.0,87735.0,2.35925385]
[1743043686316,0.17046562,87736.0,87735.0,2.42305385]
[1743043687119,0.05008,87737.0,87736.0,0.1139646]
[1743043687427,0.05008,87737.0,87736.0,0.2879646]
[1743043687622,0.05008,87737.0,87736.0,0.3195646]
[1743043688323,0.05008,87737.0,87736.0,0.33078519]
[1743043688828,0.05008,87737.0,87736.0,0.22062519]
[1743043689215,0.1647633,87737.0,87736.0,0.22062519]
[1743043689425,0.0508,87737.0,87736.0,0.22062519]
[1743043689623,0.1161,87737.0,87736.0,0.22062519]
[1743043690026,0.2300633,87737.0,87736.0,0.22062519]
[1743043690226,0.1161,87737.0,87736.0,0.22062519]
[1743043690529,0.0841,87737.0,87736.0,0.22062519]
[1743043690931,0.0841,87737.0,87736.0,0.2094046]
[1743043691433,0.0841,87737.0,87736.0,0.41291026]
[1743043691637,0.08338,87737.0,87736.0,0.41291026]
[1743043695543,0.08338,87737.0,87736.0,0.2094046]
[1743043696936,0.08338,87737.0,87736.0,0.5702046]
[1743043697732,0.089299,87737.0,87736.0,0.5702046]
[1743043700346,0.089219,87737.0,87736.0,0.5702046]
[1743043701039,0.120019,87737.0,87736.0,0.5702046]
[1743043701438,0.120019,87737.0,87736.0,0.95409255]
[1743043704944,0.120019,87737.0,87736.0,2.45409255]
[1743043706339,0.120019,87737.0,87736.0,0.95409255]
[1743043706645,0.120019,87737.0,87736.0,0.92249255]
[1743043706848,0.152719,87737.0,87736.0,0.92249255]
[1743043707247,0.120019,87737.0,87736.0,0.92249255]
[1743043711850,0.120019,87737.0,87736.0,0.56169255]
[1743043712055,0.120019,87737.0,87736.0,0.92249255]
[1743043714149,0.1141,87737.0,87736.0,0.92249255]
[1743043717050,0.1141,87737.0,87736.0,1.32737521]
[1743043727059,0.05,87737.0,87736.0,1.32737521]
[1743043727449,0.05,87737.0,87736.0,2.82737521]
[1743043727955,0.05,87737.0,87736.0,2.93909521]
[1743043728257,0.0004,87745.0,87744.0,0.1139542]
[1743043728458,1e-07,87745.0,87744.0,0.85932215]
[1743043728761,0.09378612,87759.0,87758.0,0.113936]
[1743043728950,1e-07,87761.0,87760.0,0.11387967]
[1743043729153,0.00060011,87761.0,87760.0,0.60238179]
[1743043729354,1e-07,87761.0,87760.0,1.98998179]
[1743043729657,1e-07,87761.0,87760.0,2.05478179]
[1743043730257,1e-07,87761.0,87760.0,2.5482641]
[1743043730654,1e-07,87761.0,87760.0,2.4354241]
[1743043730965,1e-07,87761.0,87760.0,2.5483041]
[1743043731166,0.00594507,87761.0,87760.0,2.5483041]
[1743043731370,0.00594507,87761.0,87760.0,1.0483041]
[1743043731564,0.00594507,87761.0,87760.0,0.92400762]
[1743043732663,0.00594507,87761.0,87760.0,0.93540925]
[1743043733258,0.00594507,87761.0,87760.0,1.27447784]
[1743043733459,1e-07,87763.0,87762.0,0.1139308]
[1743043733664,0.033,87779.0,87776.0,0.1139126]
[1743043733867,0.00104,87777.0,87776.0,0.1145526]
[1743043734065,0.0004,87777.0,87776.0,0.1145526]
[1743043734462,0.0004,87777.0,87776.0,0.1794526]
[1743043735461,8e-05,87783.0,87782.0,0.1139048]
[1743043735664,8e-05,87783.0,87782.0,0.1145448]
[1743043735665,0.00060001,87783.0,87782.0,0.1145448]
[1743043736369,8e-05,87785.0,87784.0,0.1139023]
[1743043736669,0.00072,87785.0,87784.0,0.1145423]
[1743043739770,0.03342,87785.0,87784.0,0.1145423]
[1743043740273,0.179921,87785.0,87784.0,0.1145423]
[1743043740975,0.06602,87785.0,87784.0,0.1145423]
[1743043741561,0.06602,87785.0,87784.0,0.1793423]
[1743043745375,0.179921,87785.0,87784.0,0.1793423]
[1743043745775,0.06602,87785.0,87784.0,0.1793423]
[1743043745978,0.179921,87785.0,87784.0,0.1793423]
[1743043748868,0.179921,87785.0,87784.0,0.1145423]
[1743043749683,0.179921,87785.0,87784.0,0.1472423]
[1743043749976,0.179921,87785.0,87784.0,0.1779423]
[1743043750978,0.179921,87785.0,87784.0,0.06404]
[1743043751170,0.1139036,87783.0,87782.0,0.12531867]
[1743043751372,0.1145836,87783.0,87782.0,0.12599867]
[1743043751778,0.1145836,87783.0,87782.0,0.15669867]
[1743043751972,0.12580046,87783.0,87782.0,0.15669867]
[1743043752480,0.12580046,87783.0,87782.0,0.12599867]
[1743043753085,0.12580046,87783.0,87782.0,0.01209407]
[1743043753280,0.12580046,87783.0,87782.0,0.12599887]
[1743043753783,0.12580046,87783.0,87782.0,0.18939887]
[1743043754173,0.12580046,87783.0,87782.0,0.00068]
[1743043754880,0.11391,87778.0,87777.0,0.01170093]
[1743043755186,0.11391,87778.0,87776.0,0.38388795]
[1743043755187,0.1139113,87777.0,87776.0,0.38388795]
[1743043755369,0.2085713,87777.0,87776.0,0.49840055]
[1743043756085,0.3223713,87777.0,87776.0,0.49840055]
[1743043756282,0.3223713,87777.0,87776.0,0.38448795]
[1743043757181,0.3223313,87777.0,87776.0,0.0006]
[1743043757684,0.3223313,87777.0,87776.0,0.0656]
[1743043757876,0.3223313,87777.0,87776.0,0.1795126]
[1743043758079,0.3223313,87777.0,87776.0,0.1801126]
[1743043759172,0.2904313,87777.0,87776.0,0.1801126]
[1743043762988,0.2904313,87777.0,87776.0,0.0662]
[1743043763775,0.1139139,87775.0,87774.0,0.20328959]
[1743043764083,0.1139217,87769.0,87768.0,0.27082483]
[1743043764288,0.11480171,87769.0,87768.0,0.27142483]
[1743043764480,0.11480171,87769.0,87768.0,0.0006]
[1743043764887,0.17620171,87769.0,87768.0,0.0006]